Workbook

Sheet Site Info
A1: swmp
A2: Site Waste Management Plan (SWMP)
B4: Site information
B5: Project name: | D5: St Gilles Circus | I5: Main Contractor name: | K5: Skanska
B6: Site Address: | D6: 23 Denmark Street, London, WC2H 8NP | I6: Main Contractor Address: | K6: 120 Aldersgate Street, London, EC1A 4JQ
B9: Project Start date: | D9: 2016-02-01 | I9: Prepared by: | K9: Jo Delahunty
B10: Client: | D10: Consolidated Developments | I10: Job title: | K10: DC/Environmental Co-ordinator
I11: Approved by: | K11: Paul Roberts
I12: Job title: | K12: Project Director
B14: Description of project:
B15: The development comprises the demolition of Denmark Place properties and retention of the façade on St Giles High Street, and new build elements and refurbishment. The development is split into Zones 1-3 with Skanska working on Zones 1 and 2. The site occupies an irregular quadrilateral of land boarded by Denmark Street, Charing Cross Road, Andrew Borde Road and St Giles High Street. The site is adjacent to the new (not yet completed) Tottenham Court Road Crossrail station, and the Centre Point redevelopment, adjacent to the intersection of Oxford Street, Tottenham Court Road and Charing Cross Road. Zone 1 comprises new build construction with retained façade of York Mansions along St Giles High Street and relocation of façade on 1-3 Denmark Place. It includes a 4 level basement for an event space, offices, retail, residential, and a hotel. Zone 2 comprises mostly refurbishment of non-listed properties north of Denmark Street, including retained facades to be repaired and new roof extensions and conversion to office, retail and residential
B16: Size of project (m2 total floor area) | E16: 18965 | I16: Construction Cost | L16: 90000000
B18: Appointed persons
B19: Site Waste Manager: | D19: Eleanor Stewart | I19: Other:
B20: Contact number: | D20: 07823 355 818 | I20: Contact number:
B22: Other: | I22: Other:
B23: Contact number: | I23: Contact number:
B25: Distribution
B26: A copy of the SWMP has been distributed all relevant members of the project team including the Client, Project Director, Trade Contractors, Procurement and Design team.
B27: The most recent copy of this document can be found on the Project Integrated Management System. A copy of the SWMP must be distributed to all significant parties concerned with waste on site, they must also have access to the most recent copy and be fully aware of where it can be found.
C30: Signed: | G30: (Client) | I30: Signed: | M30: (Project Director)
C31: Date: | I31: Date:

Sheet Objectives
A1: swmp
B3: Objectives & Performance
B4: This plan will aim to improve resource efficiency by reducing the amount of waste produced and recover as much as possible of the remainder. This will be achieved by forecasting projected wastes, their disposal methods and by preventing or minimising waste
B5: =CONCATENATE('Site Info'!D5," aims to achieve the following waste objectives:") -> St Gilles Circus aims to achieve the following waste objectives: | L5: Initial Estimate | M5: Actual Performance | N5: Target Achieved (Y/N)
B6: Objective 1: | C6: Produce less than 6.5 tonnes non-hazardous construction waste (excluding demolition & excavation waste) per 100m2 (gross internal floor area) for the non-residential areas | M6: =SUM(('Actual Waste - ALL'!K14/'Site Info'!E16)*100) -> 0
B7: Objective 2: | C7: Produce less than 16.9 tonnes non-hazardous construction waste (excluding demolition & excavation waste) per £100k (project value) for the Denmark Street residential
B8: Objective 3: | C8: Recycle at least 85% non-hazardous demolition waste | M8: =IF(ISERR('Actual Waste - ALL'!L8)=TRUE,0,'Actual Waste - ALL'!L8) -> 0
B9: Objective 4: | C9: Recycle at least 85% non-hazardous construction waste | M9: =IF(ISERR('Actual Waste - ALL'!L14)=TRUE,0,'Actual Waste - ALL'!L14) -> 0
B10: Objective 5: | C10: Recycle at least 95% of all waste (including demolition, excavation & construction) | M10: =IF(ISERR('Actual Waste - ALL'!L17)=TRUE,0,'Actual Waste - ALL'!L17) -> 0
B11: Objective 6: | C11: To segregate the following waste streams on site (brick/blockwork, plasterboard, metal, timber, hazardous waste, office paper, packaging)
B12: Objective 7: | C12: To actively engage trade contractors with waste minimisation and waste management activities
B13: Objective 8: | C13: To reuse bricks from the demolition in the façade refurbishment on Denmark Street
B15: Waste minimisation actions
B16: The key actions selected to help save costs, ensure business efficiency throughout and reduce waste are listed below. Those is grey were considered not to be feasible
D17: Possible implementation?
B18: All | F18: Consider waste arising at demolition phase as well as construction possible use back into the project. Consult the ICE demolition Protocol for more details | P18: 1
F19: Consult with other parties and expert help where appropriate. E.g WRAP, Envirowise, Community reuse/ recycling schemes etc | P19: 1
B20: Designers | F20: Standardise dimensions and materials used (corridor/ room widths, panelling etc) | P20: 1
F21: Incorporate modularisation and off site manufacture | P21: 1
F22: Maximise reuse of existing structures and waste materials (Use RC toolkit, Aggregain and the WRAP recycled product database) | P22: 1
F23: Target packages which produce high volumes of waste | P23: 1
F24: Minimise temporary works | P24: 1
F25: Ensure full understanding of requirements of end use | P25: 1
B26: Procurement | F26: Use reusable packaging, take back schemes or waste minimisation as a criteria to select trades | P26: 1
F27: Specify recycled products where feasible (use the RC toolkit, Aggregain and WRAP recycled product database) | P27: 1
F28: Procure correct sized panels (no offcuts) | P28: 1
F29: Procure accurate amount of materials | P29: 1
F30: Utilise consolidation centres | P30: 1
F31: Set specific waste targets for high waste packages (e.g. dry lining, brickwork 10%) | P31: 1
F32: Arrange buy back schemes | P32: 1
F33: Procure items in bulk (less packaging E.g. paint) | P33: 1
F34: Procure non-hazardous materials (cheaper disposal options) | P34: 1
F35: Source durable products that require less protection on delivery | P35: 1
B36: Project team | F36: Use covered, secure storage facilities | P36: 1
F37: Use incentives and fines for trade contractor waste performances | P37: 1
F38: Design a logistics plan incorporating just in time deliveries & avoidance of repeat handling. | P38: 1
F39: Educate site labour in waste matters | P39: 1
F40: Use a hard standing waste compound | P40: 1
F41: Ensure good housekeeping and adequate supply of segregated waste bins/ skips | P41: 1
F42: Use centralised dispensers for paint, mortar etc with reusable containers | P42: 1

Sheet Waste Forecast - Dem
A1: swmp
B3: Waste Forecast - Demolition
B4: The site waste management plan data sheet can be used to forcast the estimation of waste for the project and identy actions to manage waste effectively. The trade contractor waste management plan should be used to enable more accurate estimations of waste as the project develops.
B5: Classification | C5: Waste Group | D5: Waste Type (insert extra rows if required) | F5: Estimation of waste (adjusted throughout project) | G5: Material Recovery Index (MRI) | H5: Waste Minimisation Opportunities | I5: On-site recycling / reuse / segregation | J5: Off-site recycling / reuse | K5: If no other option - | L5: Material Recovery Potential (DMP)
E6: (EWC) | H6: (prefabrication, material selection etc) | I6: (specify method and use and if waste processing licence or exemption held) | J6: (specify recycler and recycling outlet) | K6: Disposal (where)
E7: EWC code | F7: Mass (tonnes) | G7: Good practice | L7: Mass (tonnes)
B8: Inert | C8: Hardcore | D8: Concrete | E8: (17 01 01) | F8: 810 | G8: 0.95 | H8: Using part of existing structure in original form within completed construction | I8: Excess material can be dried and reused as backfill, segregate | J8: Segregate, land reclamation, re – processed and reused in the construction industry | K8: Landfill | L8: =F8*G8 -> 769.5
D9: Rubble & hardcore | E9: (17 01 07) | F9: 195.75 | G9: 0.9 | H9: Using part of existing structure in original form within completed construction | I9: Use as hardcore on site | J9: Segregate, land reclamation, re – processed and reused in the construction industry | K9: Landfill | L9: =F9*G9 -> 176.175
D10: Brick & Block work | E10: (17 01 02) | F10: 360 | G10: 0.9 | H10: Using part of existing structure in original form within completed construction | I10: Use as hardcore on site | J10: Segregate, land reclamation, re – processed and reused in the construction industry | K10: Landfill | L10: 324
C11: Inert soils | D11: Sub soil | E11: (17 05 04) | F11: 0 | G11: 0.95 | H11: Use techniques with less land remediation e.g. piling | I11: Re use in landscaping, use as back fill | J11: Land reclamation | K11: Landfill | L11: 0
C12: Tiles & Ceramics | D12: Tiles & Ceramics | E12: (17 01 03) | F12: 7.2 | G12: 0.85 | H12: Using part of existing structure in original form within completed construction | I12: Use as hardcore on site | J12: Segregate, land reclamation, re – processed and reused in the construction industry | K12: Landfill | L12: 6.12
C13: Glass | D13: Glass | E13: (17 02 02) | F13: 2.25 | G13: 0.8 | J13: Segregate waste and send for recycling | K13: Landfill | L13: 1.8
E14: Inert Subtotal | F14: =SUM(F8:F13) -> 1375.2 | G14: =L14/F14 -> 0.9290248691 | L14: =SUM(L8:L13) -> 1277.595
C15: Metals | D15: Ferrous | E15: (17 04 05) | F15: 1350 | G15: 0.98 | H15: Using part of existing structure in original form within completed construction | I15: Re-used in temporary works | J15: Segregate waste and send to scrap merchant | K15: Landfill | L15: =F15*G15 -> 1323
D16: Non-Ferrous | E16: (17 04 07) | F16: 22.5 | G16: 0.98 | H16: Using part of existing structure in original form within completed construction | I16: Re-used in temporary works | J16: Segregate waste and send to scrap merchant | K16: Landfill | L16: 22.05
C17: Asphalt | D17: Asphalt | E17: (17 03 02) | F17: 0 | G17: 0.95 | H17: Reuse tarmac areas intact | I17: Re-use in temporary works | J17: Segregate waste and send for recycling | K17: Landfill | L17: 0
C18: Plasterboard | D18: Gypsum | E18: (17 08 02) | F18: 45.018 | G18: 0.9 | J18: Send back to a plasterboard recycling facility. | K18: Landfill | L18: =F18*G18 -> 40.5162
C19: Wood | D19: Timber | E19: (17 02 01) | F19: 27 | G19: 0.9 | I19: Reuse for shuttering and general carpentry (steps etc). | J19: Segregate, chip for composting or furniture manufacture or other reuse. | K19: Landfill / Incinerate | L19: 24.3
C20: Mixed Construction Waste | D20: Mixed Construction Waste | E20: (17 09 04) | F20: 0 | G20: 0.7 | J20: Send to transfer station for further segregation | K20: Landfill | L20: 0
D21: Top soil | E21: (17 05 04) | F21: 0 | G21: 0 | H21: Store on site | I21: Re use in landscaping | J21: Land reclamation, sell to other companies | K21: Landfill | L21: 0
D22: Green waste | E22: (02 01 03) | F22: 0 | G22: 0.95 | H22: Excavate and replant larger specimens (trees) | I22: Chip on site, compost, for landscaping | J22: Segregate, send for composting, spread on land (improvement) | K22: Landfill | L22: 0
D23: Other | F23: 0 | L23: 0
E24: Active Subtotal | F24: =SUM(F15:F23) -> 1444.518 | G24: =L24/F24 -> 0.9760115139 | L24: =SUM(L15:L23) -> 1409.8662
E25: Non-Hazardous Subtotal | F25: =SUM(F24,F14) -> 2819.718 | G25: =L25/F25 -> 0.9530957351 | L25: =SUM(L24,L14) -> 2687.4612
B26: Hazardous | C26: Hazardous waste | D26: Asbestos | E26: (17 06 05*) | F26: 0 | G26: 0 | H26: N/A | I26: N/A | J26: N/A | K26: Landfill | L26: 0
D27: Oils | E27: (20 01 26*) | F27: 0 | G27: 0 | H27: Correct Ordering and Storage | I27: N/A | J27: N/A | K27: Landfill | L27: 0
D28: Other | F28: 0 | G28: 0 | L28: 0
E29: Hazardous Subtotal | F29: =SUM(F26:F28) -> 0 | G29: =L29/F29 ->  | L29: =SUM(L26:L28) -> 0
E30: TOTAL | F30: =SUM(F25,F29) -> 2819.718 | G30: =L30/F30 -> 0.9530957351 | L30: =SUM(L25,L29) -> 2687.4612

Sheet Waste Estimator DEM
A1: swmp
B2: Demolition Waste Estimator | M2: Concrete Frame | S2: Load bearing Masonry | Y2: Steel Frame | AE2: Timber
H3: Material | I3: EWC | J3: Volume (m3) | K3: Weight (Tonnes) | M3: Material | N3: Percentage type | O3: conversion factor | P3: Volume (m3) | Q3: Weight (Tonnes) | S3: Material | T3: Percentage type | U3: conversion factor | V3: Volume (m3) | W3: Weight (Tonnes) | Y3: Material | Z3: Percentage type | AA3: conversion factor | AB3: Volume (m3) | AC3: Weight (Tonnes) | AE3: Material | AF3: Percentage type | AG3: conversion factor | AH3: Volume (m3) | AI3: Weight (Tonnes)
B4: This tool is based on WRAP data and can be used to estimate quantities of demolition materials. | H4: Concrete | I4: (17 01 01) | J4: =SUM(P4,V4,AB4,AH4) -> 870.9677419 | K4: =SUM(Q4,W4,AC4,AI4) -> 810 | M4: Concrete | N4: 0.5682483769 | O4: 1.075268817 | P4: =Q4*O4 -> 0 | Q4: =Q$22*N4 -> 0 | S4: Concrete | T4: 0.2970843764 | U4: 1.075268817 | V4: =W4*U4 -> 0 | W4: =W$22*T4 -> 0 | Y4: Concrete | Z4: 0.2872627688 | AA4: 1.075268817 | AB4: =AC4*AA4 -> 870.9677419 | AC4: =AC$22*Z4 -> 810 | AE4: Concrete | AF4: 0.2486917776 | AG4: 1.075268817 | AH4: =AI4*AG4 -> 0 | AI4: =AI$22*AF4 -> 0
B5: To use the tool, please complete the information below. The figures opposite are based on building volume and construction type. | H5: Rubble & hardcore | I5: (17 01 07) | J5: =SUM(P5,V5,AB5,AH5) -> 326.25 | K5: =SUM(Q5,W5,AC5,AI5) -> 195.75 | M5: Rubble & hardcore | N5: 0.09903367145 | O5: 1.666666667 | P5: =Q5*O5 -> 0 | Q5: 0 | S5: Rubble & hardcore | T5: 0.03451259019 | U5: 1.666666667 | V5: =W5*U5 -> 0 | W5: 0 | Y5: Rubble & hardcore | Z5: 0.0694218358 | AA5: 1.666666667 | AB5: =AC5*AA5 -> 326.25 | AC5: 195.75 | AE5: Rubble & hardcore | AF5: 0.03885809025 | AG5: 1.666666667 | AH5: =AI5*AG5 -> 0 | AI5: 0
H6: Brick & Block work | I6: (17 01 02) | J6: 545.4545455 | K6: 360 | M6: Brick & Block work | N6: 0.1001719895 | O6: 1.515151515 | P6: 0 | Q6: 0 | S6: Brick & Block work | T6: 0.4141510823 | U6: 1.515151515 | V6: 0 | W6: 0 | Y6: Brick & Block work | Z6: 0.1276723417 | AA6: 1.515151515 | AB6: 545.4545455 | AC6: 360 | AE6: Brick & Block work | AF6: 0.207243148 | AG6: 1.515151515 | AH6: 0 | AI6: 0
H7: Sub soil | I7: (17 05 04) | J7: 0 | K7: 0 | M7: Sub soil | N7: 0 | O7: 1.694915254 | P7: 0 | Q7: 0 | S7: Sub soil | T7: 0 | U7: 1.694915254 | V7: 0 | W7: 0 | Y7: Sub soil | Z7: 0 | AA7: 1.694915254 | AB7: 0 | AC7: 0 | AE7: Sub soil | AF7: 0 | AG7: 1.694915254 | AH7: 0 | AI7: 0
B8: Construction Type | C8: Concrete Frame | D8: Load bearing Masonry | E8: Steel Frame | F8: Timber | H8: Tiles & Ceramics | I8: (17 01 03) | J8: 14.09829646 | K8: 7.2 | M8: Tiles & Ceramics | N8: 0.00455327225 | O8: 1.95809673 | P8: 0 | Q8: 0 | S8: Tiles & Ceramics | T8: 0.004601678692 | U8: 1.95809673 | V8: 0 | W8: 0 | Y8: Tiles & Ceramics | Z8: 0.002553446834 | AA8: 1.95809673 | AB8: 14.09829646 | AC8: 7.2 | AE8: Tiles & Ceramics | AF8: 0.0207243148 | AG8: 1.95809673 | AH8: 0 | AI8: 0
H9: Glass | I9: (17 02 02) | J9: 6.818181818 | K9: 2.25 | M9: Glass | N9: 0.001138318063 | O9: 3.03030303 | P9: 0 | Q9: 0 | S9: Glass | T9: 0.001150419673 | U9: 3.03030303 | V9: 0 | W9: 0 | Y9: Glass | Z9: 0.0007979521356 | AA9: 3.03030303 | AB9: 6.818181818 | AC9: 2.25 | AE9: Glass | AF9: 0.0259053935 | AG9: 3.03030303 | AH9: 0 | AI9: 0
B10: Length (m) | E10: 50 | H10: Ferrous | I10: (17 04 05) | J10: 3139.534884 | K10: 1350 | M10: Ferrous | N10: 0.1536729385 | O10: 2.325581395 | P10: 0 | Q10: 0 | S10: Ferrous | T10: 0.172562951 | U10: 2.325581395 | V10: 0 | W10: 0 | Y10: Ferrous | Z10: 0.4787712814 | AA10: 2.325581395 | AB10: 3139.534884 | AC10: 1350 | AE10: Ferrous | AF10: 0.1942904513 | AG10: 2.325581395 | AH10: 0 | AI10: 0
B11: Width (m) | E11: 12 | H11: Non-Ferrous | I11: (17 04 07) | J11: 25 | K11: 22.5 | M11: Non-Ferrous | N11: 0.00455327225 | O11: 1.111111111 | P11: 0 | Q11: 0 | S11: Non-Ferrous | T11: 0.01150419673 | U11: 1.111111111 | V11: 0 | W11: 0 | Y11: Non-Ferrous | Z11: 0.007979521356 | AA11: 1.111111111 | AB11: 25 | AC11: 22.5 | AE11: Non-Ferrous | AF11: 0.0259053935 | AG11: 1.111111111 | AH11: 0 | AI11: 0
B12: Footprint (m2) | C12: =C10*C11 -> 0 | D12: =D10*D11 -> 0 | E12: =E10*E11 -> 600 | H12: Asphalt | I12: (17 03 02) | J12: 0 | K12: 0 | M12: Asphalt | N12: 0 | O12: 1.111111111 | P12: 0 | Q12: 0 | S12: Asphalt | T12: 0 | U12: 1.111111111 | V12: 0 | W12: 0 | Y12: Asphalt | Z12: 0 | AA12: 1.111111111 | AB12: 0 | AC12: 0 | AE12: Asphalt | AF12: 0 | AG12: 1.111111111 | AH12: 0 | AI12: 0
B13: Height (m) | E13: 10 | H13: Gypsum | I13: (17 08 02) | J13: 73.89691399 | K13: 45.018 | M13: Gypsum | N13: 0.02619166379 | O13: 1.641497045 | P13: 0 | Q13: 0 | S13: Gypsum | T13: 0.02301759682 | U13: 1.641497045 | V13: 0 | W13: 0 | Y13: Gypsum | Z13: 0.01596542633 | AA13: 1.641497045 | AB13: 73.89691399 | AC13: 45.018 | AE13: Gypsum | AF13: 0.1295787783 | AG13: 1.641497045 | AH13: 0 | AI13: 0
B14: Volume (m3) | C14: =C12*C13 -> 0 | D14: =D12*D13 -> 0 | E14: =E12*E13 -> 6000 | F14: =F12*F13 -> 0 | H14: Timber | I14: (17 02 01) | J14: 81.81818182 | K14: 27 | M14: Timber | N14: 0.03961346858 | O14: 3.03030303 | P14: 0 | Q14: 0 | S14: Timber | T14: 0.04141510823 | U14: 3.03030303 | V14: 0 | W14: 0 | Y14: Timber | Z14: 0.009575425628 | AA14: 3.03030303 | AB14: 81.81818182 | AC14: 27 | AE14: Timber | AF14: 0.1088026527 | AG14: 3.03030303 | AH14: 0 | AI14: 0
H15: Mixed Construction Waste | I15: (17 09 04) | J15: 0 | K15: 0 | M15: Mixed Construction Waste | N15: 0.001365981675 | O15: 3.703703704 | P15: 0 | Q15: 0 | S15: Mixed Construction Waste | T15: 0 | U15: 3.703703704 | V15: 0 | W15: 0 | Y15: Mixed Construction Waste | Z15: 0 | AA15: 3.703703704 | AB15: 0 | AC15: 0 | AE15: Mixed Construction Waste | AF15: 0 | AG15: 3.703703704 | AH15: 0 | AI15: 0
H16: Top soil | I16: (17 05 04) | J16: 0 | K16: 0 | M16: Top soil | P16: 0 | Q16: 0 | S16: Top soil | V16: 0 | W16: 0 | Y16: Top soil | AB16: 0 | AC16: 0 | AE16: Top soil | AH16: 0 | AI16: 0
H17: Green waste | I17: (02 01 03) | J17: 0 | K17: 0 | M17: Green waste | N17: 0 | O17: 2.879355024 | P17: 0 | Q17: 0 | S17: Green waste | T17: 0 | U17: 2.879355024 | V17: 0 | W17: 0 | Y17: Green waste | Z17: 0 | AA17: 2.879355024 | AB17: 0 | AC17: 0 | AE17: Green waste | AF17: 0 | AG17: 2.879355024 | AH17: 0 | AI17: 0
H18: Other | J18: 0 | K18: 0 | M18: Other | P18: 0 | Q18: 0 | S18: Other | V18: 0 | W18: 0 | Y18: Other | AB18: 0 | AC18: 0 | AE18: Other | AH18: 0 | AI18: 0
H19: Asbestos | I19: (17 06 05*) | J19: 0 | K19: 0 | M19: Asbestos | N19: 0.00145704712 | O19: 3.703703704 | P19: 0 | Q19: 0 | S19: Asbestos | T19: 0 | U19: 3.703703704 | V19: 0 | W19: 0 | Y19: Asbestos | Z19: 0 | AA19: 3.703703704 | AB19: 0 | AC19: 0 | AE19: Asbestos | AF19: 0 | AG19: 3.703703704 | AH19: 0 | AI19: 0
H20: Oils | J20: =SUM(P20,V20,AB20,AH20) -> 0 | K20: =SUM(Q20,W20,AC20,AI20) -> 0 | P20: =Q20*O20 -> 0 | Q20: 0 | V20: =W20*U20 -> 0 | W20: 0 | AB20: =AC20*AA20 -> 0 | AC20: 0 | AH20: =AI20*AG20 -> 0 | AI20: 0
H21: Other | J21: 0 | K21: 0 | M21: Other | P21: 0 | Q21: 0 | S21: Other | V21: 0 | W21: 0 | Y21: Other | AB21: 0 | AC21: 0 | AE21: Other | AH21: 0 | AI21: 0
H22: TOTAL | J22: =SUM(J4:J21) -> 5083.838745 | K22: =SUM(K4:K21) -> 2819.718 | M22: TOTAL | N22: 0.483169 | P22: =SUM(P4:P21) -> 0 | Q22: =C14*N22 -> 0 | S22: TOTAL | T22: 0.54328 | V22: =SUM(V4:V21) -> 0 | W22: =D14*T22 -> 0 | Y22: TOTAL | Z22: 0.469953 | AB22: =SUM(AB4:AB21) -> 5083.838745 | AC22: =E14*Z22 -> 2819.718 | AE22: TOTAL | AF22: 0.38602 | AH22: =SUM(AH4:AH21) -> 0 | AI22: =F14*AF22 -> 0

Sheet Waste Forecast - Exc
A1: swmp
B3: Waste Forecast - Bulk Excavation (not including excavation from piling or infrastructure)
B4: The site waste management plan data sheet can be used to forcast the estimation of waste for the project and identy actions to manage waste effectively. The trade contractor waste management plan should be used to enable more accurate estimations of waste as the project develops.
B5: Classification | C5: Waste Group | D5: Waste Type (insert extra rows if required) | F5: Estimation of waste (adjusted throughout project) | G5: Material Recovery Index (MRI) | H5: Waste Minimisation Opportunities | I5: On-site recycling / reuse / segregation | J5: Off-site recycling / reuse | K5: If no other option - | L5: Material Recovery Potential (MRP)
E6: (EWC) | H6: (prefabrication, material selection etc) | I6: (specify method and use and if waste processing licence or exemption held) | J6: (specify recycler and recycling outlet) | K6: Disposal (where)
E7: EWC code | F7: Mass (tonnes) | G7: Good Practice % | L7: Mass (tonnes)
B8: Inert | C8: Hardcore | D8: Rubble & hardcore | E8: (17 01 07) | G8: 0.95 | H8: Using part of existing structure in original form within completed construction | I8: Use as hardcore on site | J8: Segregate, land reclamation, re – processed and reused in the construction industry | K8: Landfill | L8: =F8*G8 -> 0
C9: Inert soils | D9: Sub soil | E9: (17 05 04) | G9: 0.95 | H9: Use techniques with less land remediation e.g. piling | I9: Re use in landscaping, use as back fill | J9: Land reclamation | K9: Landfill | L9: =F9*G9 -> 0
E10: Inert Subtotal | F10: =SUM(F8:F9) -> 0 | G10: =L10/F10 ->  | L10: =SUM(L8:L9) -> 0
B11: Active | C11: Asphalt | D11: Asphalt | E11: (17 03 02) | G11: 0.9 | H11: Reuse tarmac areas intact | I11: Re-use in temporary works | J11: Segregate waste and send for recycling | K11: Landfill | L11: 0
C12: Biodegrade-able Waste | D12: Top soil | E12: (17 05 04) | G12: 1 | H12: Store on site | I12: Re use in landscaping | J12: Land reclamation, sell to other companies | K12: Landfill | L12: 0
D13: Green waste | E13: (02 01 03) | G13: 0.85 | H13: Excavate and replant larger specimens (trees) | I13: Chip on site, compost, for landscaping | J13: Segregate, send for composting, spread on land (improvement) | K13: Landfill | L13: 0
C14: Other | D14: Other | E14: tbc | L14: 0
E15: Active Subtotal | F15: =SUM(F11:F14) -> 0 | G15: =L15/F15 ->  | L15: =SUM(L11:L14) -> 0
E16: Non-Hazardous Subtotal | F16: =SUM(F15,F10) -> 0 | G16: =L16/F16 ->  | L16: =SUM(L15,L10) -> 0
B17: Hazardous | C17: Hazardous waste | D17: Contaminated Land | E17: (17 05 03*) | F17: 0 | G17: 0 | H17: N/A | I17: N/A | J17: N/A | K17: Landfill | L17: 0
D18: Oils | E18: (20 01 26*) | G18: 0 | L18: 0
D19: Asphalt and tar | E19: (17 03 03*) | G19: 0 | H19: N/A | I19: N/A | J19: N/A | K19: Landfill | L19: 0
D20: Other | E20: tbc | L20: 0
E21: Hazardous Subtotal | F21: =SUM(F17:F20) -> 0 | G21: =L21/F21 ->  | L21: =SUM(L17:L20) -> 0
E22: TOTAL | F22: =SUM(F16,F21) -> 0 | G22: =L22/F22 ->  | L22: =SUM(L16,L21) -> 0

Sheet Waste Forecast - Con
A1: swmp
B3: Waste Forecast - Construction
B4: The site waste management plan data sheet can be used to forcast the estimation of waste for the project and identy actions to manage waste effectively. The trade contractor waste management plan should be used to enable more accurate estimations of waste as the project develops.
B5: Classification | C5: Waste Group | D5: Waste Type | F5: Trade Contractor / Package most likely to produce | G5: Estimation of waste (adjusted throughout project) | H5: Material Recovery Index (MRI) | I5: Waste Minimisation Opportunities | J5: On-site recycling / reuse / segregation | K5: Off-site recycling / reuse | L5: If no other option - | M5: Material Recovery Potential (MRP)
E6: (EWC) | I6: (prefabrication, material selection etc) | J6: (specify method and use and if waste processing licence or exemption held) | K6: (specify recycler and recycling outlet) | L6: Disposal (where)
D7: (insert extra rows if required) | E7: EWC code | G7: Mass (tonnes) | H7: Good Practice % | M7: Mass (tonnes)
B8: Inert | C8: Hardcore | D8: Concrete | E8: (17 01 01) | F8: Foundations / Piling, Concrete frame, ground works, floors | H8: 1 | I8: Prefabrication off site, on site batcher, plan pours (use surplus for blinding etc) | J8: Excess material can be dried and reused as backfill, segregate | K8: Segregate, land reclamation, re – processed and reused in the construction industry | L8: Landfill | M8: =H8*G8 -> 0
D9: Rubble & hardcore | E9: (17 01 07) | F9: Infrastructure, Foundations, Envelope | H9: 0.95 | I9: Using part of existing structure in original form within completed construction | J9: Use as hardcore on site | K9: Segregate, land reclamation, re – processed and reused in the construction industry | L9: Landfill | M9: =H9*G9 -> 0
D10: Brick & Block work | E10: (17 01 02) | F10: Envelope | H10: 1 | I10: Incentive schemes not based on m2 completed, correct storage, correct ordering | J10: Use as hardcore on site | K10: Segregate, land reclamation, re – processed and reused in the construction industry | L10: Landfill | M10: 0
C11: Inert soils | D11: Sub soil | E11: (17 05 04) | F11: Piling, Groundworks | H11: 0.95 | I11: Store on site. Use techniques with less land remediation e.g. piling | J11: Re use in landscaping, use as back fill | K11: Land reclamation | L11: Landfill | M11: 0
C12: Tiles & Ceramics | D12: Tiles and Ceramics | E12: (17 01 03) | F12: Envelope, internal finishing trades | H12: 0.9 | I12: Correct ordering, Store correctly | J12: Use as hardcore on site | K12: Segregate, land reclamation, re – processed and reused in the construction industry | L12: Landfill | M12: 0
C13: Glass | D13: Glass | E13: (17 02 02) | F13: Envelope | H13: 0.9 | I13: Programmed JIT delivery | K13: Segregate waste and send for recycling | L13: Landfill | M13: 0
F14: Inert Subtotal | G14: =SUM(G8:G13) -> 0 | H14: =M14/G14 ->  | M14: =SUM(M8:M13) -> 0
B15: Active | C15: Plastics | D15: Plastics | E15: (17 02 03) | F15: Ground works, M&E | H15: 0.75 | I15: Prefabrication, correct ordering, Store correctly | J15: Store and reuse larger offcuts | K15: Segregate and send to recycling facility | L15: Landfill | M15: 0
C16: Iron, Steel & Metals | D16: Mixed metals | E16: (17 04 07) | F16: Temporary works, Steel frame, Secondary Steelwork, Concrete Frame, Decking | H16: 1 | I16: Prefabrication, correct ordering, Store correctly | J16: Re-used in temporary works | K16: Segregate waste and send to scrap merchant | L16: Landfill | M16: 0
C17: Packaging | D17: Mixed Packaging | E17: (15 01 06) | F17: M&E, Fit out, Cladding, Doors & Windows | H17: 0.9 | I17: Request minimal/ reusable packaging, suppliers to take back their packaging | J17: Reusable packaging | K17: Segregate cardboard, pallets and plastic for recycling | L17: Landfill | M17: 0
C18: Plasterboard | D18: Gypsum | E18: (17 08 02) | F18: Dry lining | H18: 0.9 | I18: Procure to uniform size, store flat, undercover in a secure compound, correct ordering | J18: Dedicated storage place for off cuts to reuse. | K18: Send back to a plasterboard recycling facility. | L18: Landfill | M18: 0
C19: Timber / Pallets | D19: Timber | E19: (17 02 01) | F19: Concrete frame, ground works, joinery, pallets | H19: 0.8 | I19: Use steel shuttering, reuse all shuttering, use another product. Return pallets to supplier or use plastic pallets. | J19: Reuse for shuttering and general carpentry (steps etc). Reuse pallets for internal storage and movements of materials | K19: Segregate, chip for composting or furniture manufacture or other reuse. | L19: Landfill / Incinerate | M19: 0
C20: Mixed Construction Waste | D20: Mixed Construction Waste | E20: (17 09 04) | F20: All trades | H20: 0.95 | I20: Pre assembly and prefabrication off site | K20: Send to transfer station for further segregation | L20: Landfill | M20: 0
C21: Topsoil | D21: Top soil | E21: (17 05 04) | F21: Earthworks | H21: 0.95 | I21: Store on site | J21: Re use in landscaping | K21: Land reclamation, sell to other companies | L21: Landfill | M21: 0
C22: Green Waste | D22: Green waste | E22: (02 01 03) | F22: Earthworks, Landscaping | H22: 0.9 | I22: Excavate and replant larger specimens (trees) | J22: Chip on site, compost, for landscaping | K22: Segregate, send for composting, spread on land (improvement) | L22: Landfill | M22: 0
C23: Municipal Waste | D23: Canteen | E23: (20 01 08) | F23: Canteen, logistics | H23: 0.9 | I23: Use reusable cutlery and crockery | J23: Compost for landscaping. Must be kept separate from other waste & stored in closed wheelie bins | K23: Send for composting (food waste only), segregate paper, cans and glass | L23: Landfill | M23: 0
D24: Office card and paper waste | E24: (20 01 01) | F24: Skanska Management, major packages | H24: 0.9 | I24: Photocopiers double sided, only issue the relevant pages of a document, only use china cups | J24: Reuse paper, cartridges, plastic cups, newspaper, magazines, tins and cardboard | K24: Segregate, recycle white paper | L24: Landfill | M24: 0
C25: Liquid Waste | D25: Liquids | E25: (16 10 02) | F25: dewatering, roadsweeping | H25: 0 | I25: site logistics to reduce vehicle movements | J25: reuse for damping down site access routes or during demolition | K25: settlement lagoon | M25: 0
C26: Other | D26: Floor Coverings | E26: tbc | F26: Fit out | H26: 0.9 | I26: Procure to uniform size, store flat, undercover in a secure compound, correct ordering | J26: use off cuts on site where quality allows | K26: Vinyl / carpet flooring take back schemes | L26: Landfill | M26: 0
F27: Active Subtotal | G27: =SUM(G15:G26) -> 0 | H27: =M27/G27 ->  | M27: =SUM(M15:M26) -> 0
F28: Non-Hazardous Subtotal | G28: =SUM(G14,G27) -> 0 | H28: =M28/G28 ->  | M28: =SUM(M14,M27) -> 0
B29: Hazardous | C29: Hazardous Waste | D29: Contaminated Land | E29: (17 05 03*) | F29: Earthworks, ground works | H29: 0 | I29: Contain in situ | J29: Remediate on site and reuse material | K29: Remediate off site | L29: Landfill | M29: 0
D30: Oils | E30: (20 01 26*) | F30: All trades | H30: 0 | I30: Correct ordering & storage | J30: USE A SEPARATE, SECURE, COVERED CONTAINER FOR STORAGE | K30: Segregate for recycling off site | L30: Landfill | M30: 0
D31: Asphalt and tar | E31: (17 03 03*) | F31: Earthworks, ground works | H31: 0 | I31: Reuse tarmac areas intact | J31: Re-use in temporary works | K31: Segregate waste and send for recycling | L31: Landfill | M31: 0
D32: Paint tins, mastic etc | E32: (08 01 XX* & 20 01 27*) | F32: All trades | H32: 0.7 | I32: Use alternative products that are not disposed of as hazardous waste. Maximise use of mechanical fitting rather than adhesives, use batch filling and re-usable containers | J32: USE A SEPARATE, SECURE, COVERED CONTAINER FOR STORAGE | K32: Sell unused items back to trade or donate to repaint community schemes such as www.communityrepaint.org.uk | L32: Incinerator, landfill | M32: 0
D33: Cementitious Binders | E33: (10 13 14) | F33: Ground works, Foundations, Sructure, Envelope, External works | I33: Correct ordering, Store correctly. Pre-mixed concrete & mortar. | J33: Solidify and reuse as hardcore | K33: Segregate waste and send for recycling | L33: Landfill | M33: 0
D34: Other | E34: tbc | M34: 0
F35: Hazardous Subtotal | G35: =SUM(G29:G34) -> 0 | H35: =M35/G35 ->  | M35: =SUM(M29:M34) -> 0
F36: TOTAL | G36: =SUM(G28,G35) -> 0 | H36: =M36/G36 ->  | M36: =SUM(M28,M35) -> 0

Sheet Waste Estimator CON (hidden)
A1: swmp
B2: Construction Waste Estimator
H3: Material | I3: EWC | K3: Weight (Tonnes)
B4: This tool is based on SMARTWaste and Skanska historical data and can be used to estimate quantities of construction waste | H4: Concrete | I4: (17 01 01) | J4: 0.0281761502 | K4: =J4*F$14 -> 13.93183835
H5: Rubble & hardcore | I5: (17 01 07) | J5: 0.4167819749 | K5: 206.0799314
B6: To use the tool, please complete the information below. The figures opposite are based on gross internal floor area and construction cost. | H6: Brick & Block work | I6: (17 01 02) | J6: 0.0114901081 | K6: 5.681341398
H7: Sub soil | I7: (17 05 04) | J7: 0.0192542474 | K7: 9.520358897
H8: Tiles and Ceramics | I8: (17 01 03) | J8: 0.011 | K8: 5.439005
H9: Glass | I9: (17 02 02) | J9: 0 | K9: 0
B10: Width | C10: 30 | D10: m | H10: Plastics | I10: (17 02 03) | J10: 0.01233816461 | K10: 6.100667182
B11: Length | C11: 100 | D11: m | H11: Metals | I11: (17 04 07) | J11: 0.03120823184 | K11: 15.43106627
B12: Footprint | C12: =C10*C11 -> 3000 | D12: m2 | H12: Packaging | I12: (15 01 06) | J12: 0.0248919222 | K12: 12.30793539
B13: Number of storeys | C13: 2 | H13: Gypsum | I13: (17 08 02) | J13: 0.01123980289 | K13: 5.557576739
B14: Gross internal floor area | C14: 7607 | D14: m2 | E14: 6.5 | F14: =(C14/100)*E14 -> 494.455 | H14: Timber | I14: (17 02 01) | J14: 0.07534822948 | K14: 37.25630881
B15: Construction Cost | C15: ='Site Info'!L16 -> 90000000 | E15: 5.04 | F15: =(C15/100000)*E15 -> 4536 | H15: Mixed Construction Waste | I15: (17 09 04) | J15: 0.3200213403 | K15: 158.2361518
F16: =AVERAGE(F14:F15) -> 2515.2275 | H16: Top soil | I16: (17 05 04) | J16: 0 | K16: 0
H17: Green waste | I17: (02 01 03) | J17: 0 | K17: 0
H18: Canteen/office | I18: (20 01 08) | J18: 0.03495394157 | K18: 17.28315118
H19: Office card & paper | I19: (20 01 01) | J19: 0.003295886454 | K19: 1.629667536
H20: Liquids | I20: (16 10 02) | J20: 0 | K20: 0
H21: Other | I21: tbc | J21: 0 | K21: 0
H22: Contaminated Land | I22: (17 05 03*) | J22: 0 | K22: =J22*L$27 -> 0
H23: Oils | I23: (20 01 26*) | J23: 0.04148657189 | K23: 0.1846191861
H24: Asphalt and tar | I24: (17 03 03*) | J24: 0.6725021015 | K24: 2.992698239
H25: Paint tins, mastic etc | I25: (08 01 XX* & 20 01 27*) | J25: 0.1089627861 | K25: 0.4848947496
H26: Binders | I26: (10 13 14) | J26: 0.08254756523 | K26: 0.3673445073
H27: Other | J27: 0.0945009753 | K27: 0.4205383177 | L27: =F14*0.9% -> 4.450095
H28: TOTAL | K28: =SUM(K4:K27) -> 498.905095

Sheet TC WMP
A1: swmp
B3: Trade contractor waste management plan
B5: Trade contractor: | D5: Person responsible for waste:
B6: Package title: | D6: Package Number: | G6: Date:
B7: Please outline your intended methods of waste minimisation for the duration of the package(s)
B9: Primary Materials | F9: Amount to be used | H9: Anticipated waste
B10: (please detail all material(s) used) | F10: Mass (tonnes) | H10: Mass (tonnes)
B23: Hazardous Materials | F23: Amount to be used | H23: Anticipated waste
B24: (please detail all material(s) used) | F24: Mass (tonnes) | H24: Mass (tonnes)

Sheet Site Management
A1: swmp
B3: Site Waste Management Procedure
B4: Our approach to waste management is based on the waste hierarchy (see diagram).
B5: The Skanska Site Waste Management Plan along with the Skanska Waste Managment System on line reporting tool will form the basis for managing waste reduction and realising the Project objectives. Bringing best practice from our other Construction projects; we will hold pre start waste reduction workshops to gather accurate predictions, target reductions and establish KPIs. Our Waste minimisation methodology incorporates the following key steps:
B6: 1) Waste Minimisation
B7: Elimination at source Working with the design team to minimise inherent waste within the design and building on the efficiencies incorporated such as off site manufacturing pre cast elements and allowing for standardised material dimensions and components. Waste minimisation Working with the procurement teams to enable careful management including the Design and specification of non hazardous materials and reusable packaging (collapsible plastic Stillages) will be utilised and returned to the supplier. Materials management. Estimating waste arising from packages and monitor these during works to ensure targets are being met. Allowing ‘Just In Time’ deliveries and preparatory work to be done offsite to improve housekeeping and reduce damage.
B10: 2) Waste Segregation & Recycling
B11: Reuse of waste materials opportunities for returning unused materials under buy back schemes, or reuse opportunities on other contracts. The Net Waste toolkit will identify ‘quick wins’ for increasing the overall recycled content as achieved at HMP Glenochil (20% target) project. Recycling waste materials will be optimised by selecting waste management companies with proven levels of recycling, installing a waste segregation system for construction, demolition and excavation wastes with a minimum 5 segregated waste streams.
B13: Training
B14: Skanska induction training and pre-start meetings will deliver training relating to the implementation of the SWMP and waste management issues on site.
B15: Training will cover:
B16: · Why the SWMP is required | F16: · Waste management issues | J16: · Roles and responsibilities
B17: · Waste minimisation arrangements | F17: · Waste segregation arrangements | J17: · Waste collection arrangements
B18: A log of the training delivered will be maintained
B20: Recording and reporting waste
B21: Waste forecasts will be recorded and updated in the SWMP data sheet.
B22: All movements of waste, detailing
C23: - Re-use and recycling on site
C24: - Re-use and recycling off site
C25: - Material sent to recycling facility
C26: - Material sent to exempt site
C27: - Material sent to landfill
B28: including references to waste carriers used will be recorded and maintained and updated monthly through the Skanska Waste Management System

Sheet Actual Waste - Dem
A1: swmp
B3: Summary of Site Waste Performance - Demolition | K3: Last Updated: | L3: =MAX(Review!C7:C200) -> 2015-08-05
B5: Classification | C5: (Should be updated at least every 6 months and completed one month before project completion)
C6: Waste Type | D6: Estimated | F6: Actual | H6: Amount of waste (tonnes) | L6: Performance score (+/-) | M6: Savings (+)/(-) | N6: Comments (including lessons learned and possible recommendations for future improvements)
D7: Quantity of waste | E7: MRI | F7: Quantity of waste | G7: MRI | H7: Reused or recycled | J7: Sent to landfill | K7: Exempt
D8: Mass (tonnes) | E8: % | F8: Mass (tonnes) | G8: % | H8: On site | I8: Off site | L8: Mass (tonnes) | M8: Estimated £s
B9: Inert | C9: ='Waste Forecast - Dem'!D8 -> Concrete | D9: ='Waste Forecast - Dem'!F8 -> 810 | E9: ='Waste Forecast - Dem'!G8 -> 0.95 | F9: =SUM(H9:K9) -> 0 | G9: =SUM(H9+I9)/(H9+I9+J9) ->  | H9: 0 | I9: 0 | J9: 0 | L9: =F9-D9 -> -810 | M9: 400
C10: ='Waste Forecast - Dem'!D9 -> Rubble & hardcore | D10: ='Waste Forecast - Dem'!F9 -> 195.75 | E10: ='Waste Forecast - Dem'!G9 -> 0.9 | F10: 0 | G10: =SUM(H10+I10)/(H10+I10+J10) ->  | H10: 0 | I10: 0 | J10: 0 | L10: -195.75 | M10: -150
C11: ='Waste Forecast - Dem'!D10 -> Brick & Block work | D11: ='Waste Forecast - Dem'!F10 -> 360 | E11: ='Waste Forecast - Dem'!G10 -> 0.9 | F11: 0 | H11: 0 | I11: 0 | J11: 0 | L11: -360 | M11: 300
C12: ='Waste Forecast - Dem'!D11 -> Sub soil | D12: ='Waste Forecast - Dem'!F11 -> 0 | E12: ='Waste Forecast - Dem'!G11 -> 0.95 | F12: 0 | H12: 0 | I12: 0 | J12: 0 | L12: 0 | M12: -200
C13: ='Waste Forecast - Dem'!D12 -> Tiles & Ceramics | D13: ='Waste Forecast - Dem'!F12 -> 7.2 | E13: ='Waste Forecast - Dem'!G12 -> 0.85 | F13: 0 | H13: 0 | I13: 0 | J13: 0 | L13: -7.2 | M13: 150
C14: ='Waste Forecast - Dem'!D13 -> Glass | D14: ='Waste Forecast - Dem'!F13 -> 2.25 | E14: ='Waste Forecast - Dem'!G13 -> 0.8 | F14: 0 | H14: 0 | I14: 0 | J14: 0 | L14: -2.25 | M14: 80
C15: Subtotal | D15: ='Waste Forecast - Dem'!F14 -> 1375.2 | E15: ='Waste Forecast - Dem'!G14 -> 0.9290248691 | F15: =SUM(F9:F14) -> 0 | G15: =SUM(H15+I15)/(H15+I15+J15) ->  | H15: =SUM(H9:H14) -> 0 | I15: 0 | J15: 0 | K15: 0 | L15: =SUM(L9:L14) -> -1375.2 | M15: 580
B16: Active | C16: ='Waste Forecast - Dem'!D15 -> Ferrous | D16: ='Waste Forecast - Dem'!F15 -> 1350 | E16: ='Waste Forecast - Dem'!G15 -> 0.98 | F16: =SUM(H16:K16) -> 0 | H16: 0 | I16: 0 | J16: 0 | L16: =F16-D16 -> -1350 | M16: 600
C17: ='Waste Forecast - Dem'!D16 -> Non-Ferrous | D17: ='Waste Forecast - Dem'!F16 -> 22.5 | E17: ='Waste Forecast - Dem'!G16 -> 0.98 | F17: 0 | H17: 0 | I17: 0 | J17: 0 | L17: -22.5 | M17: 150
C18: ='Waste Forecast - Dem'!D17 -> Asphalt | D18: ='Waste Forecast - Dem'!F17 -> 0 | E18: ='Waste Forecast - Dem'!G17 -> 0.95 | F18: 0 | H18: 0 | I18: 0 | J18: 0 | L18: 0
C19: ='Waste Forecast - Dem'!D18 -> Gypsum | D19: ='Waste Forecast - Dem'!F18 -> 45.018 | E19: ='Waste Forecast - Dem'!G18 -> 0.9 | F19: 0 | H19: 0 | I19: 0 | J19: 0 | L19: -45.018 | M19: -320
C20: ='Waste Forecast - Dem'!D19 -> Timber | D20: ='Waste Forecast - Dem'!F19 -> 27 | E20: ='Waste Forecast - Dem'!G19 -> 0.9 | F20: 0 | H20: 0 | I20: 0 | J20: 0 | L20: -27 | M20: 80
C21: ='Waste Forecast - Dem'!D20 -> Mixed Construction Waste | D21: ='Waste Forecast - Dem'!F20 -> 0 | E21: ='Waste Forecast - Dem'!G20 -> 0.7 | F21: 0 | H21: 0 | I21: 0 | J21: 0 | L21: 0
C22: ='Waste Forecast - Dem'!D21 -> Top soil | D22: ='Waste Forecast - Dem'!F21 -> 0 | E22: ='Waste Forecast - Dem'!G21 -> 0 | F22: 0 | H22: 0 | I22: 0 | J22: 0 | L22: 0
C23: ='Waste Forecast - Dem'!D22 -> Green waste | D23: ='Waste Forecast - Dem'!F22 -> 0 | E23: ='Waste Forecast - Dem'!G22 -> 0.95 | F23: 0 | I23: 0 | J23: 0 | L23: 0
C24: ='Waste Forecast - Dem'!D23 -> Other | D24: ='Waste Forecast - Dem'!F23 -> 0 | E24: ='Waste Forecast - Dem'!G23 -> 0 | F24: 0 | H24: 0 | I24: 0 | J24: 0 | L24: 0
C25: Subtotal | D25: ='Waste Forecast - Dem'!F24 -> 1444.518 | E25: ='Waste Forecast - Dem'!G24 -> 0.9760115139 | F25: =SUM(F16:F24) -> 0 | H25: =SUM(H16:H24) -> 0 | I25: 0 | J25: 0 | K25: 0 | L25: -1444.518 | M25: =SUM(M16:M24) -> 510
C26: Non-Hazardous Subtotal | D26: ='Waste Forecast - Dem'!F25 -> 2819.718 | E26: ='Waste Forecast - Dem'!G25 -> 0.9530957351 | F26: =SUM(F15,F25) -> 0 | H26: =SUM(H15,H25) -> 0 | I26: 0 | J26: 0 | K26: 0 | L26: -2819.718 | M26: 1090
B27: Hazardous | C27: ='Waste Forecast - Dem'!D26 -> Asbestos | D27: ='Waste Forecast - Dem'!F26 -> 0 | E27: ='Waste Forecast - Dem'!G26 -> 0 | F27: =SUM(H27:K27) -> 0 | J27: 0 | L27: =F27-D27 -> 0
C28: ='Waste Forecast - Dem'!D27 -> Oils | D28: ='Waste Forecast - Dem'!F27 -> 0 | E28: ='Waste Forecast - Dem'!G27 -> 0 | F28: =SUM(H28:K28) -> 0 | L28: =F28-D28 -> 0
C29: ='Waste Forecast - Dem'!D28 -> Other | D29: ='Waste Forecast - Dem'!F28 -> 0 | E29: ='Waste Forecast - Dem'!G28 -> 0 | F29: =SUM(H29:K29) -> 0 | G29: =SUM(H29+I29)/(H29+I29+J29) ->  | L29: =F29-D29 -> 0
C30: Subtotal | D30: ='Waste Forecast - Dem'!F29 -> 0 | E30: ='Waste Forecast - Dem'!G29 ->  | F30: =SUM(F27:F29) -> 0 | H30: =SUM(H27:H29) -> 0 | I30: 0 | J30: 0 | K30: 0 | L30: 0 | M30: 0
C31: TOTALS | D31: ='Waste Forecast - Dem'!F30 -> 2819.718 | E31: ='Waste Forecast - Dem'!G30 -> 0.9530957351 | F31: =SUM(F15+F25+F30) -> 0 | H31: =SUM(H15+H25+H30) -> 0 | I31: 0 | J31: 0 | K31: 0 | L31: -2819.718 | M31: 1090

Sheet Actual Waste - Exc
A1: swmp
B3: Summary of Site Waste Performance - Excavation | M3: Last Updated: | N3: =MAX(Review!C7:C200) -> 2015-08-05
B5: Classification | C5: (Should be updated at least every 6 months and completed one month before project completion)
C6: Waste Type | D6: Estimated | F6: Actual | H6: Amount of waste (tonnes) | L6: Performance score (+/-) | M6: Savings (+/-) | N6: Comments (including lessons learned and possible recommendations for future improvements)
D7: Quantity of waste | E7: MRI | F7: Quantity of waste | G7: MRI | H7: Reused or recycled | J7: Sent to landfill | K7: Exempt
D8: Mass (tonnes) | E8: % | F8: Mass (tonnes) | G8: % | H8: On site | I8: Off site | L8: Mass (tonnes) | M8: Estimated £s
B9: Inert | C9: ='Waste Forecast - Exc'!D8 -> Rubble & hardcore | D9: ='Waste Forecast - Exc'!F8 -> 0 | E9: ='Waste Forecast - Exc'!G8 -> 0.95 | F9: =SUM(H9:K9) -> 0 | G9: =SUM(H9+I9)/(H9+I9+J9) ->  | L9: =F9-D9 -> 0
C10: ='Waste Forecast - Exc'!D9 -> Sub soil | D10: ='Waste Forecast - Exc'!F9 -> 0 | E10: ='Waste Forecast - Exc'!G9 -> 0.95 | F10: =SUM(H10:K10) -> 0 | L10: =F10-D10 -> 0
C11: Subtotal | D11: ='Waste Forecast - Exc'!F10 -> 0 | E11: ='Waste Forecast - Exc'!G10 ->  | F11: =SUM(F9:F10) -> 0 | H11: =SUM(H9:H10) -> 0 | I11: 0 | J11: 0 | K11: 0 | L11: 0 | M11: 0
C12: ='Waste Forecast - Exc'!D11 -> Asphalt | D12: ='Waste Forecast - Exc'!F11 -> 0 | E12: ='Waste Forecast - Exc'!G11 -> 0.9 | F12: =SUM(H12:K12) -> 0 | L12: =F12-D12 -> 0
B13: Active | C13: ='Waste Forecast - Exc'!D12 -> Top soil | D13: ='Waste Forecast - Exc'!F12 -> 0 | E13: ='Waste Forecast - Exc'!G12 -> 1 | F13: =SUM(H13:K13) -> 0 | L13: =F13-D13 -> 0
C14: ='Waste Forecast - Exc'!D13 -> Green waste | D14: ='Waste Forecast - Exc'!F13 -> 0 | E14: ='Waste Forecast - Exc'!G13 -> 0.85 | F14: =SUM(H14:K14) -> 0 | L14: =F14-D14 -> 0
C15: ='Waste Forecast - Exc'!D14 -> Other | D15: ='Waste Forecast - Exc'!F14 -> 0 | E15: ='Waste Forecast - Exc'!G14 -> 0 | F15: =SUM(H15:K15) -> 0 | G15: =SUM(H15+I15)/(H15+I15+J15) ->  | L15: =F15-D15 -> 0
C16: Subtotal | D16: ='Waste Forecast - Exc'!F15 -> 0 | E16: ='Waste Forecast - Exc'!G15 ->  | F16: =SUM(F12:F15) -> 0 | H16: =SUM(H12:H15) -> 0 | I16: 0 | J16: 0 | K16: 0 | L16: 0 | M16: 0
C17: Non-Hazardous Subtotal | D17: ='Waste Forecast - Exc'!F16 -> 0 | E17: ='Waste Forecast - Exc'!G16 ->  | F17: =SUM(F16,F11) -> 0 | H17: =SUM(H16,H11) -> 0 | I17: 0 | J17: 0 | K17: 0 | L17: 0 | M17: 0
B18: Hazardous | C18: ='Waste Forecast - Exc'!D17 -> Contaminated Land | D18: ='Waste Forecast - Exc'!F17 -> 0 | E18: ='Waste Forecast - Exc'!G17 -> 0 | F18: =SUM(H18:K18) -> 0 | L18: =F18-D18 -> 0
C19: ='Waste Forecast - Exc'!D18 -> Oils | D19: ='Waste Forecast - Exc'!F18 -> 0 | E19: ='Waste Forecast - Exc'!G18 -> 0 | F19: =SUM(H19:K19) -> 0 | L19: =F19-D19 -> 0
C20: ='Waste Forecast - Exc'!D19 -> Asphalt and tar | D20: ='Waste Forecast - Exc'!F19 -> 0 | E20: ='Waste Forecast - Exc'!G19 -> 0 | F20: =SUM(H20:K20) -> 0 | L20: =F20-D20 -> 0
C21: ='Waste Forecast - Exc'!D20 -> Other | D21: ='Waste Forecast - Exc'!F20 -> 0 | E21: ='Waste Forecast - Exc'!G20 -> 0 | F21: =SUM(H21:K21) -> 0 | L21: =F21-D21 -> 0
C22: Subtotal | D22: ='Waste Forecast - Exc'!F21 -> 0 | E22: ='Waste Forecast - Exc'!G21 ->  | F22: =SUM(F18:F21) -> 0 | H22: =SUM(H18:H21) -> 0 | I22: 0 | J22: 0 | K22: 0 | L22: 0 | M22: 0
C23: TOTALS | D23: ='Waste Forecast - Exc'!F22 -> 0 | E23: ='Waste Forecast - Exc'!G22 ->  | F23: =SUM(F11+F16+F22) -> 0 | H23: =SUM(H11+H16+H22) -> 0 | I23: 0 | J23: 0 | K23: 0 | L23: 0 | M23: 0

Sheet Actual Waste - Con
A1: swmp
B3: Summary of Site Waste Performance - Construction | L3: ='Waste Estimator CON'!C14/100 -> 76.07 | M3: Last Updated: | N3: =MAX(Review!C7:C200) -> 2015-08-05
B5: Classification | C5: (Should be updated at least every 6 months and completed one month before project completion)
C6: Waste Type | D6: Estimated | F6: Actual | H6: Amount of waste (tonnes) | L6: Performance score (+/-) | M6: Waste Area Benchmark | N6: Savings (+/-) | O6: Comments (including lessons learned and possible recommendations for future improvements)
D7: Quantity of waste | E7: MRI | F7: Quantity of waste | G7: MRI | H7: Reused or recycled | J7: Sent to landfill | K7: Exempt
D8: Mass (tonnes) | E8: % | F8: Mass (tonnes) | G8: % | H8: On site | I8: Off site | L8: Mass (tonnes) | M8: tonnes per 100m2 new construction | N8: Estimated £s
B9: Inert | C9: ='Waste Forecast - Con'!D8 -> Concrete | D9: ='Waste Forecast - Con'!G8 -> 0 | E9: ='Waste Forecast - Con'!H8 -> 1 | F9: =SUM(H9:K9) -> 0 | G9: =SUM(H9+I9)/(H9+I9+J9) ->  | L9: =F9-D9 -> 0 | M9: =F9/L$3 -> 0
C10: ='Waste Forecast - Con'!D9 -> Rubble & hardcore | D10: ='Waste Forecast - Con'!G9 -> 0 | E10: ='Waste Forecast - Con'!H9 -> 0.95 | F10: 0 | G10: =SUM(H10+I10)/(H10+I10+J10) ->  | L10: =F10-D10 -> 0 | M10: 0
C11: ='Waste Forecast - Con'!D10 -> Brick & Block work | D11: ='Waste Forecast - Con'!G10 -> 0 | E11: ='Waste Forecast - Con'!H10 -> 1 | F11: 0 | G11: =SUM(H11+I11)/(H11+I11+J11) ->  | L11: 0 | M11: 0
C12: ='Waste Forecast - Con'!D11 -> Sub soil | D12: ='Waste Forecast - Con'!G11 -> 0 | E12: ='Waste Forecast - Con'!H11 -> 0.95 | F12: 0 | G12: =SUM(H12+I12)/(H12+I12+J12) ->  | L12: 0 | M12: 0
C13: ='Waste Forecast - Con'!D12 -> Tiles and Ceramics | D13: ='Waste Forecast - Con'!G12 -> 0 | E13: ='Waste Forecast - Con'!H12 -> 0.9 | F13: 0 | G13: =SUM(H13+I13)/(H13+I13+J13) ->  | L13: 0 | M13: 0
C14: ='Waste Forecast - Con'!D13 -> Glass | D14: ='Waste Forecast - Con'!G13 -> 0 | E14: ='Waste Forecast - Con'!H13 -> 0.9 | F14: 0 | G14: =SUM(H14+I14)/(H14+I14+J14) -> 
C15: Subtotal | D15: ='Waste Forecast - Con'!G14 -> 0 | E15: ='Waste Forecast - Con'!H14 ->  | F15: =SUM(F9:F14) -> 0 | H15: =SUM(H9:H13) -> 0 | I15: 0 | J15: 0 | K15: 0 | L15: 0 | M15: 0 | N15: 0
B16: Active | C16: ='Waste Forecast - Con'!D15 -> Plastics | D16: ='Waste Forecast - Con'!G15 -> 0 | E16: ='Waste Forecast - Con'!H15 -> 0.75 | F16: =SUM(H16:K16) -> 0 | L16: 0 | M16: 0
C17: ='Waste Forecast - Con'!D16 -> Mixed metals | D17: ='Waste Forecast - Con'!G16 -> 0 | E17: ='Waste Forecast - Con'!H16 -> 1 | F17: 0 | L17: 0 | M17: 0
C18: ='Waste Forecast - Con'!D17 -> Mixed Packaging | D18: ='Waste Forecast - Con'!G17 -> 0 | E18: ='Waste Forecast - Con'!H17 -> 0.9 | F18: 0 | L18: 0 | M18: 0
C19: ='Waste Forecast - Con'!D18 -> Gypsum | D19: ='Waste Forecast - Con'!G18 -> 0 | E19: ='Waste Forecast - Con'!H18 -> 0.9 | F19: 0 | L19: 0 | M19: 0
C20: ='Waste Forecast - Con'!D19 -> Timber | D20: ='Waste Forecast - Con'!G19 -> 0 | E20: ='Waste Forecast - Con'!H19 -> 0.8 | F20: 0 | L20: 0 | M20: 0
C21: ='Waste Forecast - Con'!D20 -> Mixed Construction Waste | D21: ='Waste Forecast - Con'!G20 -> 0 | E21: ='Waste Forecast - Con'!H20 -> 0.95 | F21: 0 | L21: 0 | M21: 0
C22: ='Waste Forecast - Con'!D21 -> Top soil | D22: ='Waste Forecast - Con'!G21 -> 0 | E22: ='Waste Forecast - Con'!H21 -> 0.95 | F22: 0 | L22: 0 | M22: 0
C23: ='Waste Forecast - Con'!D22 -> Green waste | D23: ='Waste Forecast - Con'!G22 -> 0 | E23: ='Waste Forecast - Con'!H22 -> 0.9 | F23: 0 | L23: 0 | M23: 0
C24: ='Waste Forecast - Con'!D23 -> Canteen | D24: ='Waste Forecast - Con'!G23 -> 0 | E24: ='Waste Forecast - Con'!H23 -> 0.9 | F24: 0 | L24: 0 | M24: 0
C25: ='Waste Forecast - Con'!D24 -> Office card and paper waste | D25: ='Waste Forecast - Con'!G24 -> 0 | E25: ='Waste Forecast - Con'!H24 -> 0.9 | F25: 0 | L25: =F25-D25 -> 0 | M25: 0
C26: ='Waste Forecast - Con'!D25 -> Liquids | D26: ='Waste Forecast - Con'!G25 -> 0 | E26: ='Waste Forecast - Con'!H25 -> 0 | F26: 0 | L26: 0 | M26: 0
C27: ='Waste Forecast - Con'!D26 -> Floor Coverings | D27: ='Waste Forecast - Con'!G26 -> 0 | E27: ='Waste Forecast - Con'!H26 -> 0.9 | F27: 0 | L27: 0 | M27: 0
C28: Subtotal | D28: ='Waste Forecast - Con'!G27 -> 0 | E28: ='Waste Forecast - Con'!H27 ->  | F28: =SUM(F16:F26) -> 0 | H28: =SUM(H16:H26) -> 0 | I28: 0 | J28: 0 | K28: 0 | L28: 0 | M28: 0 | N28: 0
C29: Non-Hazardous Subtotal | D29: ='Waste Forecast - Con'!G28 -> 0 | E29: ='Waste Forecast - Con'!H28 ->  | F29: =SUM(F28,F15) -> 0 | H29: =SUM(H28,H15) -> 0 | I29: 0 | J29: 0 | K29: 0 | L29: 0 | M29: 0 | N29: 0
B30: Hazardous | C30: ='Waste Forecast - Con'!D29 -> Contaminated Land | D30: ='Waste Forecast - Con'!G29 -> 0 | E30: ='Waste Forecast - Con'!H29 -> 0 | F30: =SUM(H30:K30) -> 0 | L30: 0 | M30: 0
C31: ='Waste Forecast - Con'!D30 -> Oils | D31: ='Waste Forecast - Con'!G30 -> 0 | E31: ='Waste Forecast - Con'!H30 -> 0 | F31: 0 | L31: 0 | M31: 0
C32: ='Waste Forecast - Con'!D31 -> Asphalt and tar | D32: ='Waste Forecast - Con'!G31 -> 0 | E32: ='Waste Forecast - Con'!H31 -> 0 | F32: 0 | L32: 0 | M32: 0
C33: ='Waste Forecast - Con'!D32 -> Paint tins, mastic etc | D33: ='Waste Forecast - Con'!G32 -> 0 | E33: ='Waste Forecast - Con'!H32 -> 0.7 | F33: 0 | L33: 0 | M33: 0
C34: ='Waste Forecast - Con'!D33 -> Cementitious Binders | D34: ='Waste Forecast - Con'!G33 -> 0 | E34: ='Waste Forecast - Con'!H33 -> 0 | F34: 0 | L34: 0 | M34: 0
C35: ='Waste Forecast - Con'!D34 -> Other | D35: ='Waste Forecast - Con'!G34 -> 0 | E35: ='Waste Forecast - Con'!H34 -> 0 | F35: 0 | L35: 0 | M35: 0
C36: Subtotal | D36: ='Waste Forecast - Con'!G35 -> 0 | E36: ='Waste Forecast - Con'!H35 ->  | F36: =SUM(F30:F35) -> 0 | H36: =SUM(H30:H35) -> 0 | I36: 0 | J36: 0 | K36: 0 | L36: 0 | M36: 0 | N36: 0
C37: TOTALS | D37: ='Waste Forecast - Con'!G36 -> 0 | E37: ='Waste Forecast - Con'!H36 ->  | F37: =SUM(F15+F28+F36) -> 0 | H37: =SUM(H15+H28+H36) -> 0 | I37: 0 | J37: 0 | K37: 0 | L37: 0 | M37: 0 | N37: 0

Sheet Actual Waste - ALL
A1: swmp
B3: Summary of All Waste (Estimated and Actual) | L3: Last Updated: | M3: =MAX(Review!C7:C200) -> 2015-08-05
B4: This spreadsheet summarises estimated and actual waste quantities from demolition, excavation and construction.
B5: Project Activity | D5: Estimated | I5: Actual
D6: Total quantity of waste | F6: Total waste reused / recycled | G6: Percentage waste reused / recycled | H6: Performance (+/-) | I6: Total quantity of waste | K6: Total waste reused / recycled | L6: Percentage waste reused / recycled | M6: Savings (+/-)
D7: Mass (tonnes) | E7: Click to amend waste forecasts | F7: Mass (tonnes) | G7: % | H7: Mass (tonnes) | I7: Mass (tonnes) | J7: Click to amend actual waste data | K7: Mass (tonnes) | L7: %
B8: Demolition | C8: Non-Hazardous | D8: ='Actual Waste - Dem'!D26 -> 2819.718 | F8: ='Waste Forecast - Dem'!L25 -> 2687.4612 | G8: =F8/D8 -> 0.9530957351 | H8: =I8-D8 -> -2819.718 | I8: ='Actual Waste - Dem'!F26 -> 0 | K8: =SUM('Actual Waste - Dem'!H26:I26) -> 0 | L8: =K8/I8 ->  | M8: ='Actual Waste - Dem'!M26 -> 1090
C9: Hazardous | D9: ='Actual Waste - Dem'!D30 -> 0 | F9: ='Waste Forecast - Dem'!L29 -> 0 | G9: =F9/D9 ->  | H9: =I9-D9 -> 0 | I9: ='Actual Waste - Dem'!F30 -> 0 | K9: =SUM('Actual Waste - Dem'!H30:I30) -> 0 | L9: =K9/I9 ->  | M9: ='Actual Waste - Dem'!M30 -> 0
C10: Total | D10: =SUM(D8:D9) -> 2819.718 | F10: =SUM(F8:F9) -> 2687.4612 | G10: 0.9530957351 | H10: -2819.718 | I10: =SUM(I8:I9) -> 0 | K10: =SUM(K8:K9) -> 0 | M10: =SUM(M8:M9) -> 1090
B11: Excavation | C11: Non-Hazardous | D11: ='Actual Waste - Exc'!D17 -> 0 | F11: ='Waste Forecast - Exc'!L16 -> 0 | H11: 0 | I11: ='Actual Waste - Exc'!F17 -> 0 | K11: =SUM('Actual Waste - Exc'!H17:I17) -> 0 | M11: ='Actual Waste - Exc'!M17 -> 0
C12: Hazardous | D12: ='Actual Waste - Exc'!D22 -> 0 | F12: ='Waste Forecast - Exc'!L21 -> 0 | H12: 0 | I12: ='Actual Waste - Exc'!F22 -> 0 | K12: =SUM('Actual Waste - Exc'!H22:I22) -> 0 | M12: ='Actual Waste - Exc'!M22 -> 0
C13: Total | D13: =SUM(D11:D12) -> 0 | F13: =SUM(F11:F12) -> 0 | H13: 0 | I13: =SUM(I11:I12) -> 0 | K13: =SUM(K11:K12) -> 0 | M13: =SUM(M11:M12) -> 0
B14: Construction | C14: Non-Hazardous | D14: ='Actual Waste - Con'!D29 -> 0 | F14: ='Waste Forecast - Con'!M28 -> 0 | H14: 0 | I14: ='Actual Waste - Con'!F29 -> 0 | K14: =SUM('Actual Waste - Con'!H29:I29) -> 0 | M14: ='Actual Waste - Con'!N29 -> 0
C15: Hazardous | D15: ='Actual Waste - Con'!D36 -> 0 | F15: ='Waste Forecast - Con'!M35 -> 0 | H15: 0 | I15: ='Actual Waste - Con'!F36 -> 0 | K15: =SUM('Actual Waste - Con'!H36:I36) -> 0 | M15: ='Actual Waste - Con'!N36 -> 0
C16: Total | D16: =SUM(D14:D15) -> 0 | F16: =SUM(F14:F15) -> 0 | H16: 0 | I16: =SUM(I14:I15) -> 0 | K16: =SUM(K14:K15) -> 0 | M16: =SUM(M14:M15) -> 0
B17: TOTAL | D17: =SUM(D10,D13,D16) -> 2819.718 | F17: =SUM(F10,F13,F16) -> 2687.4612 | G17: 0.9530957351 | H17: =SUM(H10,H13,H16) -> -2819.718 | I17: =SUM(I10,I13,I16) -> 0 | K17: =SUM(K10,K13,K16) -> 0 | L17: =K17/I17 ->  | M17: =SUM(M10,M13,M16) -> 1090

Sheet References
A1: swmp
B3: This page contains references to legislation and sources of further information and guidance.
C4: Legislation
C5: Further Information
B7: Legislation
B8: There are several pieces of legislation and regulation that impose legal duties on Skanska UK and our trade contractors for management of waste. A summary of the key acts are listed below:
B9: Full texts can be sourced from | D9: http://www.statutelaw.gov.uk/ | G9: and the Skanska legal register at | J9: http://registry.enviro-suite.com/
B11: Environmental Protection Act 1990
B12: • Meet the requirement of the Duty of Care (section 34) if producing, carrying, keeping, treating and/or disposing of controlled waste. If we break the law we can be fined unlimited amount.
B13: • Only transfer controlled waste to an authorised person i.e. the local authority, registered carrier or licensed disposer.
B14: • Check with Environment Agency if carriers certificate / waste management licence is valid and that they are allowed to take your type and volume of waste (section 33).
B16: Environmental Permitting (England and Wales) Regulations 2010
B17: • An environmental Permit (waste management licence) is required for recycling activities, bulk storage at transfer station, disposal of waste to landfill, incineration and land treatment of waste. A Waste Management license is also required if more than 50,000 tonnes of waste is stored on site but exemptions apply if the waste will be reused within the site.
B18: • Activities that requires registered exemptions are for use of waste (building wastes of various quanities up to 50,000 tonnes, Treatment of Waste (up to 200tonnes eg through a crusher on site) Storage of waste 9for use elswher up to 100 tonnes) and Disposal of Waste.
B19: • A waste management licence would be required if waste from another site is taken to be stored on another site for longer than 6 months.
B20: • Contact the Project Environmental Advisor if a Permit (Waste Management licence) or an exemption is required.
B22: Landfill Directive 2002 (Amended) 2004
B23: • Segregate waste into HAZARDOUS, NON HAZARDOUS or INERT as landfill sites are now classified into these three categories.
B24: • Check with your waste contractor or directly with the landfill where your waste is taken. Waste has to meet certain criteria (Waste Acceptance Criteria) when disposed to landfill.
B26: Hazardous Waste Regulations 2005
B27: • Register with Environment Agency before the project / office starts producing hazardous waste.
B28: • Once registered with Environment Agency, put the premises code on the consignment note every time hazardous waste is removed from the project.
B29: • Inspect the consignment note to ensure it has been completed correctly. For further details see Consignment Note under Guidance.
B31: The Site Waste Management Plans Regulations 2008 | F31: NB Revoked on 1st December 2013
B32: • identify the different types of waste that will be produced by the project, and note any changes in the design and materials specification that seek to minimise this waste
B33: • consider how to re-use, recycle or recover the different wastes produced by the project
B34: • require the construction company to demonstrate that it is complying with the duty of care regime
B35: • record the quantities of waste produced
B37: Waste Regulations 2011
B38: • Implements revised EU Waste Framework
B39: • requirement to confirm compliance with waste hierarchy on WTNs
B40: • require the Standard Industry Classification to be indicated on WTN
B41: • Amends Hazardous waste controls and excludes some wastes from waste control. - provision to require segregation from 2015 for paper, metal, glasss and plastic
B43: Useful sources of further information & guidance
B44: There are a numerous guidance documents available for specific areas of waste management and minimisation for all areas of the construction industry. They include:
B46: WRAP’s Efficient Use of Materials in Regeneration projects– Guidance for delivering cost effective and sustainable design and construction practices through materials resource efficiency.
B47: www.wrap.org.uk/construction
B49: The ICE Demolition Protocol – Describes how demolition and new build design processes are managed to ensure that resource efficiency is achieved. Assists the designer and client in maximising the use of existing building elements.
B50: www.aggregain.org.uk/demolition/index
B52: SMARTWaste – A series of tools to help companies monitor and assess their waste. The information can be useful for designers and architects to review design strategies and minimise waste arisings.
B53: www.smartwaste.co.uk
B55: Green Guide to Specification – Provides guidance on the relative environmental lifecycle impacts of different elemental specifications for roofs, walls, floors etc.
B56: www.bre.co.uk/greenguide/page.jsp?id=499
B58: Design for Deconstruction: Principles of Design to Facilitate Reuse and Recycling (CIRIA, 2004) – Aims to maximise reuse of components and recycling of materials when buildings are wholly or partially deconstructed or demolished. Provides information on the principles and strategies of design for new construction works, to facilitate their eventual efficient, safe and economic deconstruction so as to optimise reuse and recycling.
B59: www.ciria.org.uk
B61: WRAP On-site guidance - These guides are designed to be of practical benefit to construction sites of all sizes in helping to manage and develop good waste management practice on-site.
B62: http://www.wrap.org.uk/construction/construction_waste_minimisation_and_management/onsite/site_how_to.html

Sheet Review
A1: swmp
B3: Ongoing Review
B4: This plan should be reviewed as required by any changes to the project and as a minimum every 6 months
B6: Version | C6: Date | D6: Project Stage | F6: Reviewed By | H6: Summary / Actions carried out | M6: Authorised By
B7: 1 | C7: 2015-08-05 | D7: PCSA | F7: E Stewart | H7: First revision | M7: Paul Roberts
